Cogmind - Beta 14 @@@ ROGUE MODE // 2024.09.25 @ 00:12:59 // Winter2022/Polymind Player: AnotherZach Result: Destroyed by Y-45 Defender with Heavy Assault Rifle Performance ------------- Evolutions (2) 1000 Regions Visited (3) 600 Robots Destroyed (14) 70 Value Destroyed (369) 369 Prototype IDs (11) 220 Alien Tech Used (0) 0 Bonus (1350) 1350 TOTAL SCORE: 3219 Bonus ------- Polymind Skill 1350 Cogmind --------- Core Integrity 0/550 Matter 90/100 Energy 73/75 System Corruption 0% Temperature Cool (13) Movement Flying (37) Location -8/Materials Parts ------- > --- POWER (1) -------- Light Ion Engine > --- PROPULSION (2) --- Flight Unit Flight Unit > --- UTILITY (0) ------ (None) > --- WEAPON (1) ------- Light Assault Rifle > --- INVENTORY (0) ---- (None) Peak State ------------ > --- POWER ------------ Subdweller Power Source > --- PROPULSION ------- Subdweller Monowheel > --- UTILITY ---------- Disposable Heat Sink Subdweller Optics Scrap Shield > --- WEAPON ----------- Subdweller Machine Gun > --- INVENTORY -------- (None) [Rating: 14] Favorites ----------- Power Light Nuclear Core Engine Subdweller Power Source Power Core Light Nuclear Core Propulsion Aluminum Leg Leg Aluminum Leg Wheel Wheel Hover Unit Hover Unit Utility Improved Heat Sink Device Improved Heat Sink Hackware Hacking Suite Protection Scrap Shield Weapon Particle Gun Energy Gun Particle Gun Ballistic Gun Subdweller Machine Gun Launcher Subdweller Shrapnel Launcher Special Weapon Mining Laser Special Melee Weapon Datajack Build | -11 -10 -10 -8 ------- Run | Yrd Mat Sub Mat Slots Evolved . | . . . . Power . | . . . . Propulsion . | . . . . Utility . | . . . . Weapon . | . . . . Parts Attached . | . . . . Power . | . . . . Engine . | . . . . Core . | . . . . Reactor . | . . . . Propulsion . | . . . . Treads . | . . . . Leg . | . . . . Wheel . | . . . . Hover . | . . . . Flight . | . . . . Utility . | . . . . Device . | . . . . Storage . | . . . . Processor . | . . . . Hackware . | . . . . Protection . | . . . . Artifact . | . . . . Weapon . | . . . . Energy Gun . | . . . . Energy Cannon . | . . . . Ballistic Gun . | . . . . Ballistic Cannon . | . . . . Launcher . | . . . . Special Weapon . | . . . . Impact Weapon . | . . . . Slashing Weapon . | . . . . Piercing Weapon . | . . . . Special Melee Weapon . | . . . . Unidentified Prototypes . | . . . . Parts Lost 11 | . . 3 8 Power 2 | . . 1 1 Propulsion 3 | . . . 3 Utility 2 | . . 1 1 Weapon 4 | . . 1 3 Highest Loss Streak 4 | . . 2 4 To Critical Strikes . | . . . . Average Slot Usage (%) 83 | . 100 83 81 Engine 7 | . 16 10 2 Core 7 | . . 4 13 Leg 16 | . . 11 26 Wheel 9 | . 33 12 1 Device 22 | . 33 26 16 Protection 1 | . . 2 . Energy Gun 8 | . . 5 13 Ballistic Gun 1 | . . 2 . Launcher 3 | . . 5 1 Special Weapon 2 | . 16 2 . Peak Build Rating 14 | 8 8 14 10 Average Rating 9 | 7 8 10 8 On Entrance 6 | . 8 8 10 Naked Turns 61 | . . 13 48 Heaviest Build 34 | 6 6 34 16 Greatest Support 20 | 20 20 20 20 Greatest Overweight (x) 5 | . . 5 5 Average Overweight (x) . | . . . . Largest Inventory Capacity 2 | . . 2 2 Average Capacity 1 | . . 1 1 Most Carried 2 | . . 2 1 Average Carried . | . . . . Final Capacity 2 | . . 2 . Final Carried 1 | . . 1 . Class Distribution -------------------- 41% | Grunt 35% | Subdweller 14% | Tunneler 4% | Cogmind 4% | Operator Dominant Class ---------------- Tunneler | -10/Materials Subdweller | -10/Subcaves Grunt | -8/Materials Resources | -11 -10 -10 -8 ----------- Run | Yrd Mat Sub Mat Matter Collected 94 | . . 94 . Remotely . | . . . . Salvage Created 259 | . . 93 166 Parts 22 | . . 13 9 Haulers Intercepted . | . . . . Recyclers Shooed . | . . . . Parts Field Recycled . | . . . . Retrieved Matter . | . . . . Parts Self-Destructed 4 | . . 4 . Prevented . | . . . . Kills | -11 -10 -10 -8 ------- Run | Yrd Mat Sub Mat Combat Hostiles Destroyed 11 | . . 9 2 Guns 3 | . . 2 1 AOE 6 | . . 6 . Classes Destroyed 6 | . . 3 3 Worker 2 | . . . 2 Builder 1 | . . . 1 Swarmer 3 | . . 3 . Grunt 1 | . . 1 . Sentry 1 | . . . 1 Subdweller 6 | . . 5 1 Best Kill Streak 3 | . . 3 2 Combat Bots Only 3 | . . 3 1 Max Kills in Single Turn 2 | . . 2 1 Gunslinging . | . . . . Exploded 2 | . . 2 . Melee . | . . . . Uniques/NPCs Destroyed . | . . . . Combat | -11 -10 -10 -8 -------- Run | Yrd Mat Sub Mat Hostile Shots Fired 150 | . . 37 113 Missed 39 | . . 6 33 Damage Taken 1896 | 1 2 796 1097 Core 728 | 1 2 168 557 Absorbed by Shields . | . . . . Core Remaining (%) 65 | 99 . 31 . Volleys Fired 57 | 3 . 26 28 Largest 1 | 1 . 1 1 Hottest 100 | 100 . 100 65 Shots Fired 57 | 3 . 26 28 Gun 42 | . . 14 28 Cannon . | . . . . Launcher 7 | . . 7 . Special 8 | 3 . 5 . Kinetic 11 | . . 11 . Thermal 46 | 3 . 15 28 Explosive . | . . . . Electromagnetic . | . . . . Robot Hit Streak 11 | 2 . 8 11 Robot Miss Streak 2 | 1 . 1 2 Penetration Max . | . . . . Secondary Targets . | . . . . Shots Hit Robots 40 | 2 . 17 21 Core Hits 17 | 1 . 10 6 Critical Kills . | . . . . Critical Parts Destroyed . | . . . . Critical Strikes 3 | . . 2 1 Burn 3 | . . 2 1 Melee Attacks . | . . . . Impact . | . . . . Slashing . | . . . . Piercing . | . . . . Sneak Attacks . | . . . . Combat Hostiles . | . . . . Follow-up Attacks . | . . . . Damage Inflicted 1045 | 55 5 652 333 Guns 532 | . . 206 326 Cannons . | . . . . Explosions 446 | . . 446 . Melee . | . . . . Ramming 15 | 3 5 . 7 Kinetic 508 | . . 508 . Thermal 522 | 52 . 144 326 Explosive . | . . . . Electromagnetic . | . . . . Impact . | . . . . Slashing . | . . . . Piercing . | . . . . Highest Corruption . | . . . . Average Corruption . | . . . . Corruption Purged . | . . . . Corruption Blocked . | . . . . Overload Shots . | . . . . Overflow Damage 35 | . . 35 . Projectiles . | . . . . Explosions 35 | . . 35 . Melee . | . . . . Knockbacks . | . . . . Impact . | . . . . Kinetic . | . . . . Secondary . | . . . . Self-Inflicted Damage 122 | 1 2 116 3 Shots 3 | . . 3 . Rammed 6 | 2 2 . 2 Targets Rammed 6 | 2 2 . 2 Kicked . | . . . . Crushed . | . . . . Highest Temperature 195 | 155 . 3 195 Average Temperature 56 | 71 . 3 37 Received Heat Transfer 531 | . . 45 486 Siege Activations . | . . . . Robots Corrupted . | . . . . Combat Hostiles . | . . . . Parts Fried . | . . . . Impact Corruptions . | . . . . Robots Melted 2 | . . 1 1 Combat Hostiles 2 | . . 1 1 Parts Melted 3 | . . . 3 Heat Transferred 1432 | 100 . 481 851 Parts Sabotaged . | . . . . Parts Stolen . | . . . . Parts Stripped . | . . . . Power Chain Reactions . | . . . . Alert | -11 -10 -10 -8 ------- Run | Yrd Mat Sub Mat Peak Influence 105 | . 105 . 103 Initial 36 | . . . 36 Average 52 | . 46 . 62 Maximum Alert Level . | . . . . Low Security (%) 100 | 100 100 . 100 Level 1 . | . . . . Level 2 . | . . . . Level 3 . | . . . . Level 4 . | . . . . Level 5 . | . . . . High Security . | . . . . Max Security . | . . . . Squads Dispatched 2 | . 1 . 1 Investigation . | . . . . Extermination . | . . . . Reinforcement 2 | . 1 . 1 Assault . | . . . . Garrison . | . . . . Intercept . | . . . . Searches Triggered . | . . . . Construction Impeded . | . . . . Haulers Reinforced . | . . . . Active Scanning Responses . | . . . . Cargo Convoy Interrupts . | . . . . Stealth | -11 -10 -10 -8 --------- Run | Yrd Mat Sub Mat Distress Signals 1 | . . . 1 Communications Jammed . | . . . . Distress Signals . | . . . . Times Spotted 41 | . 1 11 29 Peak Tracking Total 13 | . 3 2 13 Tactical Retreats 1 | . . . 1 Traps | -11 -10 -10 -8 ------- Run | Yrd Mat Sub Mat Traps Triggered . | . . . . Indirectly . | . . . . Trap Hack Attempts . | . . . . Triggered . | . . . . Disarmed . | . . . . Reprogrammed . | . . . . Reused . | . . . . Traps Extracted . | . . . . Installed . | . . . . Triggered . | . . . . Machines | -11 -10 -10 -8 ---------- Run | Yrd Mat Sub Mat Machines Disabled . | . . . . Max in Single Turn . | . . . . Machines Repaired . | . . . . Machines Dismantled . | . . . . Machines Sabotaged . | . . . . Overloaded Fab Kills . | . . . . Hacking | -11 -10 -10 -8 --------- Run | Yrd Mat Sub Mat Machines Accessed 4 | . . 2 2 Terminals 2 | . . . 2 Fabricators . | . . . . Repair Stations . | . . . . Recycling Units . | . . . . Scanalyzers . | . . . . Garrison Access . | . . . . Total Hacks 12 | . . 6 6 Successful 8 | . . 6 2 Failed 4 | . . . 4 Catastrophic 3 | . . . 3 Database Lockouts . | . . . . Manual 1 | . . . 1 Terminals 6 | . . . 6 Fabricators . | . . . . Repair Stations . | . . . . Recycling Units . | . . . . Scanalyzers . | . . . . Garrison Access . | . . . . Terminal Hacks 8 | . . 6 2 Record 5 | . . 5 . Level Access Points 1 | . . . 1 Branch Access Points 1 | . . . 1 Derelict Proto ID Bank 1 | . . 1 . Fabricator Hacks . | . . . . Repair Station Hacks . | . . . . Recycling Unit Hacks . | . . . . Scanalyzer . | . . . . Garrison Access Hacks . | . . . . Unauthorized Hacks . | . . . . Terminals . | . . . . Fabricators . | . . . . Repair Stations . | . . . . Recycling Units . | . . . . Scanalyzers . | . . . . Garrison Access . | . . . . Data Cores Recovered . | . . . . Used . | . . . . Hacking Detections 2 | . . . 2 Full Trace Events . | . . . . Feedback Events . | . . . . Feedback Blocked . | . . . . Robot Schematics Acquired . | . . . . Robots Built . | . . . . Authchips . | . . . . Time . | . . . . Total Robot Build Rating . | . . . . Part Schematics Acquired . | . . . . Parts Built . | . . . . Authchips . | . . . . Time . | . . . . Total Part Build Rating . | . . . . Parts Repaired . | . . . . Time . | . . . . Parts Recycled . | . . . . Recycled Matter . | . . . . Retrieved Matter . | . . . . Retrieved Components . | . . . . Parts Scanalyzed . | . . . . Part Schematics Acquired . | . . . . Parts Damaged . | . . . . Bothacking | -11 -10 -10 -8 ------------ Run | Yrd Mat Sub Mat Used RIF Installer . | . . . . Robots Hacked 4 | . . 1 3 Non-combat 1 | . . . 1 Combat 3 | . . 1 2 Robot Hacks Applied 6 | . . 1 5 find_terminals 1 | . . . 1 find_shortcuts 3 | . . 1 2 find_garrison 2 | . . . 2 Relay Couplers Released . | . . . . Fabnet Peak Effective % . | . . . . Robots Rewired . | . . . . Allies Hacked . | . . . . Hacks Repelled . | . . . . Allies | -11 -10 -10 -8 -------- Run | Yrd Mat Sub Mat Total Allies . | . . . . Largest Group . | . . . . Highest-Rated Group . | . . . . Highest-Rated Ally . | . . . . Total Orders . | . . . . Ally Attacks . | . . . . Total Damage . | . . . . Kills . | . . . . Allies Corrupted . | . . . . Allies Melted . | . . . . Intel | -11 -10 -10 -8 ------- Run | Yrd Mat Sub Mat Robot Analysis Total 5 | 1 . 2 2 Derelict Logs Recovered . | . . . . Drone Launches . | . . . . Drone Recoveries . | . . . . Exploration | -11 -10 -10 -8 ------------- Run | Yrd Mat Sub Mat Turns Passed 1353 | 87 85 705 476 Spaces Moved 1030 | 66 88 462 414 Core 225 | 12 . 65 148 Treads . | . . . . Legs 341 | . . 131 210 Wheels 408 | 54 88 266 . Hover 54 | . . . 54 Flight 2 | . . . 2 Fastest Speed 37 | 50 80 50 37 Average Speed 109 | 74 80 131 96 Slowest Speed 300 | 80 80 300 300 Overloaded Moves . | . . . . Propulsion Burnouts . | . . . . Robots Hopped . | . . . . Cave-ins Triggered . | . . . . Exploration Rate (%) 23 | 4 19 32 39 Regions Visited 3 Branch Regions 1 Pre-discovered Areas 1 | . . 1 . Known Exits Taken 1 | . . 1 . Unknown Exits Taken 2 | 1 1 . . Scrap Searched 7 | . . 7 . Spaces Dug . | . . . . Terrain Destroyed 75 | . . 75 . Melee . | . . . . Projectile . | . . . . AOE 75 | . . 75 . Terrain Rammed . | . . . . Walls Destroyed . | . . . . Machines Disabled . | . . . . Actions | -11 -10 -10 -8 --------- Run | Yrd Mat Sub Mat Total 1183 | 94 102 525 462 Wait 69 | 19 . 32 18 Move 1027 | 65 87 461 414 Hop . | . . . . Pick Up 3 | . . 3 . Fast Attach . | . . . . Attach . | . . . . Detach . | . . . . Swap . | . . . . Drop 2 | . . 2 . Fire 57 | 3 . 26 28 Melee . | . . . . Ram 6 | 2 2 . 2 Kick . | . . . . Crush . | . . . . Escape Stasis . | . . . . Rewire 1 | . . 1 . Trap . | . . . . Miscellaneous 18 | 5 13 . . Route ------- -11/Scrapyard -10/Materials (discovered 2 exits: [*Mat] / *Sub) -10/Subcaves (discovered 3 exits: *Mat x2 / Rec) -8/Materials (discovered 3 exits: Fac x3) History --------- Turn | Location | Event 5 | -11/Scrapyard | Discovered new exit (range 13) 88 | -11/Scrapyard | Entered Materials 132 | -10/Materials | Discovered new exit (range 13) 170 | -10/Materials | Discovered new exit (range 3) 173 | -10/Materials | Entered Subcaves 232 | -10/Subcaves | Visited 4L-MR0's lab 393 | -10/Subcaves | Ambushed by Subdwellers from Twisted Machinery 584 | -10/Subcaves | Disturbed a concealed Subdweller 587 | -10/Subcaves | Ambushed by Subdweller buried in earth 591 | -10/Subcaves | Ambushed by Subdweller buried in earth 600 | -10/Subcaves | Core integrity fell below 50% 632 | -10/Subcaves | Discovered new exit (range 7) 640 | -10/Subcaves | Visited Clippyterm 643 | -10/Subcaves | Learned location of Extension (-6) 643 | -10/Subcaves | Identified exit to Recycling 643 | -10/Subcaves | Identified exit to Materials 878 | -10/Subcaves | Entered Materials 1271 | -8/Materials | Core integrity fell below 50% 1288 | -8/Materials | Lost 3 parts (1n1u1w) 1303 | -8/Materials | Identified exit to Factory 1332 | -8/Materials | Core integrity fell below 20% 1354 | -8/Materials | Destroyed by Y-45 Defender with Heavy Assault Rifle Last Messages --------------- Technician. 01303_ Connecting with Terminal... >>Access(Branch) No branch access points found. >>Access(Main) Found 3 level access points to Factory: (85,53) (14,49) (47,88) Map updated. 01320_ Datajack destroyed. 01320_ Critical hit (Burn: +37). 01322_ Hover Unit destroyed. 01325_ Lgt. Ion Engine destroyed. 01328_ Hover Unit destroyed. 01350_ Released control of O-16 Technician. 01351_ O-16 Technician reactivates. 01352_ Slammed into S-10 Pest. 01354_ Took control of S-10 Pest. 01354_ Extracted analysis data for S-10 Pest. Map ----- +----------------------------------------------------+ | ??????????????##############????# #????????? | | ??????????????# "T" #????# #????????? | | ????????????### #????# #????????? | | ????????????? #????## ##????????? | | ??????????????# #?????# #?????????? | | ??????????????# #?????# ##+###????? | | ??????????????# !! #??????# =* #????? | | ??????????????# !! #??????#%%! #????? | | ??############# =/ #??????#+#### #????? | | ?? /] #??????#= # #????? | | ?? #??????#/ ! # #????? | | ?? #??????# # #????? | | ???# ## ######## #?###### ! + #????? | | ???? ????# #??????# #? # # #????? | | ???????????# #??????# # #![[ # ###??? | | ???????????# #??????# # #![! # #??? | | ???????????# #??????+ + #![! #### #??? | | ???????????# #??????# # # #??# #??? | | ???????????# #??????#w # = #### #??# #??? | | ???????????# #??????# #?######??###??# #??? | | ??????????## ##?????# #########??????# #??? | | ??????????# #?????# ss# // #??????# #??? | | ??????????# #?????# s# // #??????# #??? | | ??????????# !#?????# Y/% // #??????# #??? | | ??????????# #?????# # #??????# #??? | | ??????????# ####### s# ! #??????# #??? | | ??????????## ### ! ## #########??????# #??? | | ???????????# #?# # ??????????????# #??? | | ???????????# #?# # !??????????????# #??? | | ???????????# #?# # ????